[Event "Titled Tuesday Blitz February 22 Late 2022"]
[White "Antonio, Jorge Carlos"]
[Black "Murzin, Volodar"]
[WhiteFideId "113190"]
[BlackFideId "44155573"]
[WhiteElo "2247"]
[BlackElo "2585"]
[Result "0-1"]
[Round "04"]
[TimeControl "180+1"]
[Date "2022.02.23"]
[WhiteClock "0:01:05"]
[BlackClock "0:00:17"]

1. e4 {[%clk 0:03:00]}  c5 {[%clk 0:03:00]} 2. Nc3 {[%clk 0:03:00]}  d6 {[%clk 0:02:59]} 3. d3 {[%clk 0:03:00]}  Nc6 {[%clk 0:02:59]} 4. f4 {[%clk 0:02:59]}  g6 {[%clk 0:02:59]} 5. g3 {[%clk 0:03:00]}  Bg7 {[%clk 0:02:59]} 6. Bg2 {[%clk 0:02:59]}  e6 {[%clk 0:03:00]} 7. Nf3 {[%clk 0:02:52]}  Nge7 {[%clk 0:03:01]} 8. O-O {[%clk 0:02:51]}  O-O {[%clk 0:03:01]} 9. Nh4 {[%clk 0:02:50]}  Rb8 {[%clk 0:02:59]} 10. Bh3 {[%clk 0:02:50]}  Nd4 {[%clk 0:02:57]} 11. Be3 {[%clk 0:02:48]}  b5 {[%clk 0:02:56]} 12. Bxd4 {[%clk 0:02:47]}  Bxd4+ {[%clk 0:02:55]} 13. Kh1 {[%clk 0:02:45]}  b4 {[%clk 0:02:56]} 14. Ne2 {[%clk 0:02:39]}  Bxb2 {[%clk 0:02:56]} 15. Rb1 {[%clk 0:02:38]}  Bf6 {[%clk 0:02:56]} 16. Nf3 {[%clk 0:02:35]}  Bb7 {[%clk 0:02:54]} 17. g4 {[%clk 0:02:32]}  Nc6 {[%clk 0:02:43]} 18. g5 {[%clk 0:02:31]}  Bg7 {[%clk 0:02:42]} 19. Bg2 {[%clk 0:02:23]}  Re8 {[%clk 0:02:03]} 20. Qe1 {[%clk 0:02:17]}  a5 {[%clk 0:01:38]} 21. Qh4 {[%clk 0:02:16]}  Rc8 {[%clk 0:01:27]} 22. Rg1 {[%clk 0:02:15]}  Nd4 {[%clk 0:01:22]} 23. Nexd4 {[%clk 0:02:08]}  cxd4 {[%clk 0:01:23]} 24. Ne1 {[%clk 0:02:06]}  Rc5 {[%clk 0:01:16]} 25. Bf3 {[%clk 0:02:05]}  Qc7 {[%clk 0:01:12]} 26. Rg3 {[%clk 0:02:04]}  Qe7 {[%clk 0:00:46]} 27. Rh3 {[%clk 0:02:03]}  h5 {[%clk 0:00:44]} 28. gxh6 {[%clk 0:01:59]}  Qxh4 {[%clk 0:00:43]} 29. Rxh4 {[%clk 0:01:59]}  Bf6 {[%clk 0:00:43]} 30. Rh3 {[%clk 0:01:51]}  Kh7 {[%clk 0:00:42]} 31. Bd1 {[%clk 0:01:36]}  Be7 {[%clk 0:00:24]} 32. Nf3 {[%clk 0:01:35]}  f5 {[%clk 0:00:24]} 33. Ng5+ {[%clk 0:01:24]}  Bxg5 {[%clk 0:00:22]} 34. fxg5 {[%clk 0:01:23]}  fxe4 {[%clk 0:00:23]} 35. dxe4 {[%clk 0:01:21]}  Bxe4+ {[%clk 0:00:19]} 36. Kg1 {[%clk 0:01:22]}  Rxg5+ {[%clk 0:00:18]} 37. Rg3 {[%clk 0:01:20]}  Rxg3+ {[%clk 0:00:18]} 38. hxg3 {[%clk 0:01:20]}  Rc8 {[%clk 0:00:19]} 39. a3 {[%clk 0:01:14]}  bxa3 {[%clk 0:00:15]} 40. g4 {[%clk 0:01:12]}  Kxh6 {[%clk 0:00:13]} 41. Ra1 {[%clk 0:01:08]}  Rc3 {[%clk 0:00:13]} 42. Kf2 {[%clk 0:01:07]}  Bxc2 {[%clk 0:00:13]} 43. Bxc2 {[%clk 0:01:06]}  Rxc2+ {[%clk 0:00:14]} 44. Kf3 {[%clk 0:01:06]}  Kg5 {[%clk 0:00:14]} 45. Rxa3 {[%clk 0:01:06]}  Rc3+ {[%clk 0:00:15]} 46. Rxc3 {[%clk 0:01:04]}  dxc3 {[%clk 0:00:16]} 47. Ke3 {[%clk 0:01:05]}  Kxg4 {[%clk 0:00:15]} 48. Kd3 {[%clk 0:01:05]}  Kf3 {[%clk 0:00:16]} 49. Kxc3 {[%clk 0:01:05]}  g5 {[%clk 0:00:17]} 0-1


[Site "https://www.chess.com"]

[Event "Titled Tuesday Blitz February 22 Late 2022"]
[White "Ardila, Oscar Humberto"]
[Black "Levine, Joseph"]
[WhiteFideId "4404742"]
[BlackFideId "30940346"]
[WhiteElo "1898"]
[BlackElo "1802"]
[Result "1/2-1/2"]
[Round "04"]
[TimeControl "180+1"]
[Date "2022.02.23"]
[WhiteClock "0:00:08"]
[BlackClock "0:00:07"]

1. d4 {[%clk 0:02:44]}  d5 {[%clk 0:02:59]} 2. c4 {[%clk 0:02:43]}  e6 {[%clk 0:02:59]} 3. Nc3 {[%clk 0:02:42]}  Nf6 {[%clk 0:02:59]} 4. Bg5 {[%clk 0:02:40]}  Nbd7 {[%clk 0:02:58]} 5. e3 {[%clk 0:02:40]}  c6 {[%clk 0:02:58]} 6. Nf3 {[%clk 0:02:40]}  Qa5 {[%clk 0:02:58]} 7. Bxf6 {[%clk 0:02:27]}  Nxf6 {[%clk 0:02:57]} 8. Qc2 {[%clk 0:02:25]}  Bb4 {[%clk 0:02:50]} 9. Bd3 {[%clk 0:02:23]}  dxc4 {[%clk 0:02:41]} 10. Bxc4 {[%clk 0:02:23]}  Nd5 {[%clk 0:02:12]} 11. Rc1 {[%clk 0:02:18]}  b5 {[%clk 0:01:48]} 12. Bd3 {[%clk 0:02:15]}  Qxa2 {[%clk 0:01:44]} 13. O-O {[%clk 0:02:11]}  Bxc3 {[%clk 0:01:38]} 14. bxc3 {[%clk 0:02:09]}  Qxc2 {[%clk 0:01:36]} 15. Rxc2 {[%clk 0:02:06]}  Bd7 {[%clk 0:01:35]} 16. Ne5 {[%clk 0:02:06]}  f6 {[%clk 0:01:32]} 17. Nf3 {[%clk 0:01:58]}  Ke7 {[%clk 0:01:28]} 18. Ra1 {[%clk 0:01:56]}  a5 {[%clk 0:01:27]} 19. e4 {[%clk 0:01:56]}  Nb6 {[%clk 0:01:21]} 20. e5 {[%clk 0:01:53]}  a4 {[%clk 0:01:12]} 21. exf6+ {[%clk 0:01:38]}  gxf6 {[%clk 0:01:13]} 22. Re2 {[%clk 0:01:37]}  Nd5 {[%clk 0:01:06]} 23. Rc2 {[%clk 0:01:27]}  Kd6 {[%clk 0:00:56]} 24. Nd2 {[%clk 0:01:23]}  f5 {[%clk 0:00:52]} 25. Nf3 {[%clk 0:01:21]}  Ra7 {[%clk 0:00:44]} 26. Ne5 {[%clk 0:01:20]}  Rha8 {[%clk 0:00:44]} 27. g3 {[%clk 0:01:12]}  a3 {[%clk 0:00:43]} 28. Kf1 {[%clk 0:01:01]}  Be8 {[%clk 0:00:42]} 29. f4 {[%clk 0:01:00]}  Ne3+ {[%clk 0:00:40]} 30. Ke2 {[%clk 0:00:58]}  Nxc2 {[%clk 0:00:41]} 31. Bxc2 {[%clk 0:00:58]}  c5 {[%clk 0:00:41]} 32. dxc5+ {[%clk 0:00:52]}  Kxc5 {[%clk 0:00:42]} 33. Bb3 {[%clk 0:00:52]}  Ra6 {[%clk 0:00:33]} 34. Ba2 {[%clk 0:00:51]}  b4 {[%clk 0:00:21]} 35. cxb4+ {[%clk 0:00:49]}  Kxb4 {[%clk 0:00:22]} 36. Rc1 {[%clk 0:00:45]}  Bb5+ {[%clk 0:00:21]} 37. Ke3 {[%clk 0:00:43]}  Rd6 {[%clk 0:00:16]} 38. Rb1+ {[%clk 0:00:34]}  Ka5 {[%clk 0:00:16]} 39. Rc1 {[%clk 0:00:30]}  Rad8 {[%clk 0:00:13]} 40. Rc5 {[%clk 0:00:28]}  Kb6 {[%clk 0:00:13]} 41. Rc2 {[%clk 0:00:23]}  Ba4 {[%clk 0:00:09]} 42. Nc4+ {[%clk 0:00:19]}  Ka7 {[%clk 0:00:06]} 43. Rc3 {[%clk 0:00:17]}  Ra6 {[%clk 0:00:07]} 44. Rxa3 {[%clk 0:00:16]}  Bb5 {[%clk 0:00:07]} 45. Rxa6+ {[%clk 0:00:12]}  Kxa6 {[%clk 0:00:07]} 46. Ne5 {[%clk 0:00:12]}  Rd6 {[%clk 0:00:06]} 47. Bb3 {[%clk 0:00:11]}  Kb6 {[%clk 0:00:06]} 48. h3 {[%clk 0:00:11]}  Kc5 {[%clk 0:00:06]} 49. g4 {[%clk 0:00:11]}  fxg4 {[%clk 0:00:06]} 50. hxg4 {[%clk 0:00:11]}  Kb4 {[%clk 0:00:05]} 51. Bc2 {[%clk 0:00:11]}  Kc3 {[%clk 0:00:06]} 52. Bxh7 {[%clk 0:00:10]}  Rd1 {[%clk 0:00:03]} 53. Kf2 {[%clk 0:00:07]}  Rd2+ {[%clk 0:00:03]} 54. Kg3 {[%clk 0:00:07]}  Ra2 {[%clk 0:00:01]} 55. Kh4 {[%clk 0:00:07]}  Kd4 {[%clk 0:00:02]} 56. Kg5 {[%clk 0:00:07]}  Ke3 {[%clk 0:00:03]} 57. Bg8 {[%clk 0:00:07]}  Ra4 {[%clk 0:00:03]} 58. Bxe6 {[%clk 0:00:05]}  Rxf4 {[%clk 0:00:04]} 59. Ng6 {[%clk 0:00:05]}  Ra4 {[%clk 0:00:04]} 60. Bf5 {[%clk 0:00:05]}  Ra6 {[%clk 0:00:03]} 61. Ne5 {[%clk 0:00:05]}  Kd4 {[%clk 0:00:03]} 62. Nf3+ {[%clk 0:00:05]}  Kd5 {[%clk 0:00:03]} 63. Kf4 {[%clk 0:00:05]}  Kd6 {[%clk 0:00:03]} 64. Kg5 {[%clk 0:00:05]}  Ke7 {[%clk 0:00:04]} 65. Ne5 {[%clk 0:00:05]}  Kf8 {[%clk 0:00:05]} 66. Ng6+ {[%clk 0:00:05]}  Kg7 {[%clk 0:00:04]} 67. Nf4 {[%clk 0:00:06]}  Be8 {[%clk 0:00:04]} 68. Ne6+ {[%clk 0:00:06]}  Kg8 {[%clk 0:00:05]} 69. Kf6 {[%clk 0:00:07]}  Bf7 {[%clk 0:00:05]} 70. g5 {[%clk 0:00:07]}  Rb6 {[%clk 0:00:03]} 71. g6 {[%clk 0:00:07]}  Bxe6 {[%clk 0:00:03]} 72. Bxe6+ {[%clk 0:00:07]}  Rxe6+ {[%clk 0:00:03]} 73. Kxe6 {[%clk 0:00:07]}  Kg7 {[%clk 0:00:04]} 74. Kf5 {[%clk 0:00:08]}  Kg8 {[%clk 0:00:05]} 75. Kg5 {[%clk 0:00:08]}  Kg7 {[%clk 0:00:05]} 76. Kf5 {[%clk 0:00:08]}  Kg8 {[%clk 0:00:06]} 77. Kf6 {[%clk 0:00:09]}  Kf8 {[%clk 0:00:06]} 78. Kg5 {[%clk 0:00:07]}  Kg7 {[%clk 0:00:07]} 79. Kh5 {[%clk 0:00:08]}  Kg8 {[%clk 0:00:07]} 80. Kh6 {[%clk 0:00:08]}  Kh8 {[%clk 0:00:07]} 81. g7+ {[%clk 0:00:08]}  Kg8 {[%clk 0:00:07]} 82. Kg6 {[%clk 0:00:08]} 1/2-1/2


[Site "https://www.chess.com"]

[Event "Titled Tuesday Blitz February 22 Late 2022"]
[White "Avila Pavas, Santiago"]
[Black "Indjic, Aleksandar"]
[WhiteFideId "4437128"]
[BlackFideId "911925"]
[WhiteElo "2242"]
[BlackElo "2616"]
[Result "0-1"]
[Round "04"]
[TimeControl "180+1"]
[Date "2022.02.22"]
[WhiteClock "0:00:09"]
[BlackClock "0:00:23"]

1. d4 {[%clk 0:03:00]}  Nf6 {[%clk 0:02:58]} 2. Nf3 {[%clk 0:03:01]}  e6 {[%clk 0:02:58]} 3. g3 {[%clk 0:03:01]}  c5 {[%clk 0:02:56]} 4. Bg2 {[%clk 0:03:01]}  cxd4 {[%clk 0:02:54]} 5. Nxd4 {[%clk 0:03:02]}  d5 {[%clk 0:02:55]} 6. O-O {[%clk 0:03:01]}  e5 {[%clk 0:02:54]} 7. Nb3 {[%clk 0:03:02]}  Be6 {[%clk 0:02:50]} 8. c4 {[%clk 0:02:57]}  Nc6 {[%clk 0:02:48]} 9. cxd5 {[%clk 0:02:54]}  Bxd5 {[%clk 0:02:47]} 10. Nc3 {[%clk 0:02:52]}  Bxg2 {[%clk 0:02:45]} 11. Kxg2 {[%clk 0:02:53]}  h6 {[%clk 0:02:40]} 12. Be3 {[%clk 0:02:37]}  Bb4 {[%clk 0:02:37]} 13. Qc2 {[%clk 0:01:48]}  Bxc3 {[%clk 0:01:59]} 14. Qxc3 {[%clk 0:01:46]}  Nd5 {[%clk 0:01:59]} 15. Qc5 {[%clk 0:01:41]}  Nxe3+ {[%clk 0:01:58]} 16. fxe3 {[%clk 0:01:25]}  Qe7 {[%clk 0:01:57]} 17. Rac1 {[%clk 0:01:25]}  Rc8 {[%clk 0:01:38]} 18. Na5 {[%clk 0:00:57]}  f6 {[%clk 0:01:00]} 19. Rfd1 {[%clk 0:00:42]}  O-O {[%clk 0:00:58]} 20. Qxe7 {[%clk 0:00:39]}  Nxe7 {[%clk 0:00:57]} 21. Nxb7 {[%clk 0:00:40]}  Rxc1 {[%clk 0:00:56]} 22. Rxc1 {[%clk 0:00:41]}  Rb8 {[%clk 0:00:55]} 23. Rc7 {[%clk 0:00:41]}  Nd5 {[%clk 0:00:55]} 24. Rd7 {[%clk 0:00:41]}  Nxe3+ {[%clk 0:00:54]} 25. Kf3 {[%clk 0:00:40]}  Nf5 {[%clk 0:00:49]} 26. e3 {[%clk 0:00:20]}  h5 {[%clk 0:00:48]} 27. Ke4 {[%clk 0:00:20]}  Rxb7 {[%clk 0:00:46]} 28. Rd8+ {[%clk 0:00:19]}  Kh7 {[%clk 0:00:45]} 29. Kxf5 {[%clk 0:00:19]}  Rxb2 {[%clk 0:00:44]} 30. h4 {[%clk 0:00:19]}  Rxa2 {[%clk 0:00:44]} 31. Ra8 {[%clk 0:00:16]}  Rg2 {[%clk 0:00:43]} 32. Rxa7 {[%clk 0:00:15]}  Rxg3 {[%clk 0:00:43]} 33. e4 {[%clk 0:00:16]}  Rg4 {[%clk 0:00:42]} 34. Ra1 {[%clk 0:00:08]}  Rxh4 {[%clk 0:00:41]} 35. Rg1 {[%clk 0:00:07]}  Rf4+ {[%clk 0:00:40]} 36. Ke6 {[%clk 0:00:08]}  Rg4 {[%clk 0:00:38]} 37. Rh1 {[%clk 0:00:08]}  Kg6 {[%clk 0:00:38]} 38. Rf1 {[%clk 0:00:07]}  Rxe4 {[%clk 0:00:37]} 39. Rg1+ {[%clk 0:00:08]}  Rg4 {[%clk 0:00:37]} 40. Rf1 {[%clk 0:00:08]}  h4 {[%clk 0:00:37]} 41. Rh1 {[%clk 0:00:09]}  Kg5 {[%clk 0:00:36]} 42. Kd5 {[%clk 0:00:09]}  g6 {[%clk 0:00:34]} 43. Ke6 {[%clk 0:00:09]}  e4 {[%clk 0:00:32]} 44. Kd5 {[%clk 0:00:09]}  f5 {[%clk 0:00:32]} 45. Ke5 {[%clk 0:00:10]}  Rg3 {[%clk 0:00:32]} 46. Rf1 {[%clk 0:00:10]}  h3 {[%clk 0:00:32]} 47. Kd4 {[%clk 0:00:10]}  Kg4 {[%clk 0:00:31]} 48. Ke5 {[%clk 0:00:10]}  h2 {[%clk 0:00:29]} 49. Rh1 {[%clk 0:00:07]}  Rg2 {[%clk 0:00:28]} 50. Kf6 {[%clk 0:00:06]}  Kh3 {[%clk 0:00:27]} 51. Ke5 {[%clk 0:00:06]}  Rg1 {[%clk 0:00:27]} 52. Kf4 {[%clk 0:00:07]}  Rxh1 {[%clk 0:00:26]} 53. Ke3 {[%clk 0:00:07]}  Rf1 {[%clk 0:00:26]} 54. Ke2 {[%clk 0:00:08]}  Rf3 {[%clk 0:00:25]} 55. Kd2 {[%clk 0:00:07]}  h1=Q {[%clk 0:00:24]} 56. Ke2 {[%clk 0:00:08]}  Qg2+ {[%clk 0:00:23]} 57. Ke1 {[%clk 0:00:09]}  Rf2 {[%clk 0:00:23]} 58. Kd1 {[%clk 0:00:09]}  Rf1# {[%clk 0:00:23]} 0-1


[Site "https://www.chess.com"]

[Event "Titled Tuesday Blitz February 22 Late 2022"]
[White "Borisova, Ekaterina"]
[Black "Zakhartsov, Vladimir"]
[WhiteFideId "34124184"]
[BlackFideId "4145097"]
[WhiteElo "2034"]
[BlackElo "2432"]
[Result "0-1"]
[Round "04"]
[TimeControl "180+1"]
[Date "2022.02.22"]
[WhiteClock "0:00:03"]
[BlackClock "0:00:41"]

1. d4 {[%clk 0:02:58]}  Nf6 {[%clk 0:02:58]} 2. c4 {[%clk 0:02:58]}  e6 {[%clk 0:02:58]} 3. Nc3 {[%clk 0:02:58]}  d5 {[%clk 0:02:59]} 4. cxd5 {[%clk 0:02:57]}  exd5 {[%clk 0:03:00]} 5. Bg5 {[%clk 0:02:57]}  Nbd7 {[%clk 0:03:00]} 6. e3 {[%clk 0:02:57]}  Be7 {[%clk 0:03:00]} 7. Bd3 {[%clk 0:02:57]}  c6 {[%clk 0:03:00]} 8. Qc2 {[%clk 0:02:57]}  O-O {[%clk 0:03:00]} 9. Nf3 {[%clk 0:02:57]}  Re8 {[%clk 0:03:01]} 10. O-O {[%clk 0:02:57]}  h6 {[%clk 0:03:01]} 11. Bh4 {[%clk 0:02:56]}  Ne4 {[%clk 0:03:01]} 12. Bxe7 {[%clk 0:02:52]}  Qxe7 {[%clk 0:03:02]} 13. Bxe4 {[%clk 0:02:46]}  dxe4 {[%clk 0:03:02]} 14. Nd2 {[%clk 0:02:47]}  f5 {[%clk 0:02:52]} 15. d5 {[%clk 0:02:46]}  Ne5 {[%clk 0:02:50]} 16. Qb3 {[%clk 0:02:27]}  Kh7 {[%clk 0:02:49]} 17. Nc4 {[%clk 0:02:09]}  Nd3 {[%clk 0:02:21]} 18. Rad1 {[%clk 0:01:57]}  Rd8 {[%clk 0:02:15]} 19. dxc6 {[%clk 0:01:51]}  bxc6 {[%clk 0:02:16]} 20. Na5 {[%clk 0:01:45]}  Qc5 {[%clk 0:02:09]} 21. Qa3 {[%clk 0:01:41]}  Qxa3 {[%clk 0:02:06]} 22. bxa3 {[%clk 0:01:42]}  c5 {[%clk 0:02:06]} 23. Ne2 {[%clk 0:01:26]}  Ba6 {[%clk 0:02:03]} 24. Rd2 {[%clk 0:01:18]}  Rab8 {[%clk 0:01:33]} 25. Rfd1 {[%clk 0:01:01]}  Rdc8 {[%clk 0:01:25]} 26. Rc2 {[%clk 0:00:51]}  c4 {[%clk 0:01:13]} 27. Nd4 {[%clk 0:00:44]}  Rb6 {[%clk 0:01:11]} 28. h4 {[%clk 0:00:19]}  Rc5 {[%clk 0:01:10]} 29. Nac6 {[%clk 0:00:10]}  Rcxc6 {[%clk 0:01:07]} 30. Nxc6 {[%clk 0:00:10]}  Rxc6 {[%clk 0:01:08]} 31. Rb1 {[%clk 0:00:11]}  Rb6 {[%clk 0:00:52]} 32. Rxb6 {[%clk 0:00:05]}  axb6 {[%clk 0:00:53]} 33. a4 {[%clk 0:00:05]}  Kg6 {[%clk 0:00:50]} 34. Kh2 {[%clk 0:00:05]}  Kf6 {[%clk 0:00:50]} 35. Kg3 {[%clk 0:00:05]}  Ke5 {[%clk 0:00:48]} 36. f3 {[%clk 0:00:04]}  Nb4 {[%clk 0:00:42]} 37. Rb2 {[%clk 0:00:04]}  Nd5 {[%clk 0:00:42]} 38. fxe4 {[%clk 0:00:02]}  Kxe4 {[%clk 0:00:41]} 39. h5 {[%clk 0:00:02]}  c3 {[%clk 0:00:41]} 40. Rb1 {[%clk 0:00:03]}  c2 {[%clk 0:00:41]} 41. Rc1 {[%clk 0:00:03]}  Kd3 {[%clk 0:00:41]} 42. a5 {[%clk 0:00:03]}  bxa5 {[%clk 0:00:41]} 0-1


[Site "https://www.chess.com"]

[Event "Titled Tuesday Blitz February 22 Late 2022"]
[White "Boros, Denes"]
[Black "Karttunen, Mika"]
[WhiteFideId "722340"]
[BlackFideId "502081"]
[WhiteElo "2464"]
[BlackElo "2343"]
[Result "1-0"]
[Round "04"]
[TimeControl "180+1"]
[Date "2022.02.22"]
[WhiteClock "0:01:41"]
[BlackClock "0:00:43"]

1. e4 {[%clk 0:03:00]}  c5 {[%clk 0:02:58]} 2. Nf3 {[%clk 0:03:00]}  d6 {[%clk 0:02:58]} 3. Nc3 {[%clk 0:02:59]}  Nc6 {[%clk 0:02:57]} 4. Bb5 {[%clk 0:02:57]}  Bd7 {[%clk 0:02:57]} 5. O-O {[%clk 0:02:57]}  e5 {[%clk 0:02:52]} 6. d3 {[%clk 0:02:57]}  Be7 {[%clk 0:02:50]} 7. Nd5 {[%clk 0:02:56]}  a6 {[%clk 0:02:45]} 8. Bc4 {[%clk 0:02:54]}  b5 {[%clk 0:02:41]} 9. Bb3 {[%clk 0:02:53]}  Na5 {[%clk 0:02:35]} 10. Nxe7 {[%clk 0:02:41]}  Nxe7 {[%clk 0:02:35]} 11. Ng5 {[%clk 0:02:41]}  c4 {[%clk 0:01:57]} 12. dxc4 {[%clk 0:02:35]}  bxc4 {[%clk 0:01:57]} 13. Qh5 {[%clk 0:02:11]}  g6 {[%clk 0:01:57]} 14. Qh6 {[%clk 0:02:11]}  cxb3 {[%clk 0:01:55]} 15. Qg7 {[%clk 0:02:10]}  Be6 {[%clk 0:00:54]} 16. Qxh8+ {[%clk 0:02:00]}  Kd7 {[%clk 0:00:55]} 17. Qxd8+ {[%clk 0:01:58]}  Rxd8 {[%clk 0:00:55]} 18. axb3 {[%clk 0:01:57]}  Nb7 {[%clk 0:00:55]} 19. Rxa6 {[%clk 0:01:54]}  Nc6 {[%clk 0:00:55]} 20. Be3 {[%clk 0:01:50]}  f6 {[%clk 0:00:50]} 21. Nxh7 {[%clk 0:01:47]}  f5 {[%clk 0:00:43]} 22. Nf6+ {[%clk 0:01:41]}  Ke7 {[%clk 0:00:44]} 23. Bg5 {[%clk 0:01:41]}  Kf7 {[%clk 0:00:43]} 24. Rxc6 {[%clk 0:01:41]} 1-0


[Site "https://www.chess.com"]

[Event "Titled Tuesday Blitz February 22 Late 2022"]
[White "Bryakin, Mikhail"]
[Black "Moroni, Luca Jr"]
[WhiteFideId "4165314"]
[BlackFideId "865834"]
[WhiteElo "2421"]
[BlackElo "2573"]
[Result "1/2-1/2"]
[Round "04"]
[TimeControl "180+1"]
[Date "2022.02.22"]
[WhiteClock "0:00:05"]
[BlackClock "0:00:08"]

1. e4 {[%clk 0:03:00]}  d6 {[%clk 0:02:58]} 2. Nf3 {[%clk 0:02:58]}  e5 {[%clk 0:02:58]} 3. Nc3 {[%clk 0:02:56]}  Nf6 {[%clk 0:02:56]} 4. d4 {[%clk 0:02:53]}  exd4 {[%clk 0:02:57]} 5. Nxd4 {[%clk 0:02:53]}  Be7 {[%clk 0:02:58]} 6. Be2 {[%clk 0:02:52]}  O-O {[%clk 0:02:58]} 7. O-O {[%clk 0:02:52]}  Re8 {[%clk 0:02:59]} 8. Re1 {[%clk 0:02:41]}  c6 {[%clk 0:02:58]} 9. Bf1 {[%clk 0:02:36]}  a5 {[%clk 0:02:58]} 10. a4 {[%clk 0:02:36]}  Na6 {[%clk 0:02:56]} 11. f3 {[%clk 0:02:35]}  Bf8 {[%clk 0:02:55]} 12. Be3 {[%clk 0:02:28]}  Nc5 {[%clk 0:02:42]} 13. Qd2 {[%clk 0:02:23]}  Qb6 {[%clk 0:02:39]} 14. b3 {[%clk 0:02:22]}  Bd7 {[%clk 0:02:37]} 15. Rad1 {[%clk 0:02:23]}  Rad8 {[%clk 0:02:36]} 16. Bf2 {[%clk 0:02:22]}  Bc8 {[%clk 0:02:35]} 17. g3 {[%clk 0:01:51]}  Qb4 {[%clk 0:02:33]} 18. Na2 {[%clk 0:01:47]}  Qb6 {[%clk 0:02:26]} 19. Nc3 {[%clk 0:01:46]}  g6 {[%clk 0:02:22]} 20. Bg2 {[%clk 0:01:38]}  Bg7 {[%clk 0:02:21]} 21. h3 {[%clk 0:01:38]}  Qb4 {[%clk 0:02:05]} 22. Na2 {[%clk 0:01:35]}  Qb6 {[%clk 0:02:02]} 23. Nc3 {[%clk 0:01:34]}  Qc7 {[%clk 0:02:02]} 24. f4 {[%clk 0:01:33]}  Ne6 {[%clk 0:01:56]} 25. Nxe6 {[%clk 0:01:23]}  Bxe6 {[%clk 0:01:57]} 26. Ne2 {[%clk 0:01:17]}  Bc8 {[%clk 0:01:52]} 27. Nc3 {[%clk 0:01:16]}  Nh5 {[%clk 0:01:38]} 28. Kh2 {[%clk 0:01:09]}  Nf6 {[%clk 0:01:26]} 29. Re2 {[%clk 0:01:05]}  Nd7 {[%clk 0:01:23]} 30. Bd4 {[%clk 0:01:03]}  Bxd4 {[%clk 0:01:20]} 31. Qxd4 {[%clk 0:01:03]}  Nc5 {[%clk 0:01:20]} 32. Rde1 {[%clk 0:01:00]}  Ne6 {[%clk 0:01:12]} 33. Qf2 {[%clk 0:01:01]}  Nf8 {[%clk 0:01:06]} 34. Qd4 {[%clk 0:00:54]}  Ne6 {[%clk 0:01:06]} 35. Qf6 {[%clk 0:00:52]}  Qe7 {[%clk 0:01:04]} 36. Qxe7 {[%clk 0:00:52]}  Rxe7 {[%clk 0:01:05]} 37. Rd2 {[%clk 0:00:52]}  Nc5 {[%clk 0:01:02]} 38. Red1 {[%clk 0:00:52]}  Red7 {[%clk 0:01:01]} 39. h4 {[%clk 0:00:46]}  Kf8 {[%clk 0:00:54]} 40. Bh3 {[%clk 0:00:46]}  Re7 {[%clk 0:00:53]} 41. Bg2 {[%clk 0:00:32]}  Red7 {[%clk 0:00:53]} 42. Bh3 {[%clk 0:00:28]}  Re7 {[%clk 0:00:53]} 43. Bxc8 {[%clk 0:00:22]}  Rxc8 {[%clk 0:00:53]} 44. Rxd6 {[%clk 0:00:21]}  Nxe4 {[%clk 0:00:53]} 45. Rd8+ {[%clk 0:00:21]}  Rxd8 {[%clk 0:00:52]} 46. Rxd8+ {[%clk 0:00:22]}  Kg7 {[%clk 0:00:53]} 47. Nxe4 {[%clk 0:00:20]}  Rxe4 {[%clk 0:00:54]} 48. Rd7 {[%clk 0:00:16]}  b5 {[%clk 0:00:43]} 49. axb5 {[%clk 0:00:15]}  cxb5 {[%clk 0:00:44]} 50. Rb7 {[%clk 0:00:14]}  b4 {[%clk 0:00:39]} 51. Rc7 {[%clk 0:00:14]}  Re2+ {[%clk 0:00:35]} 52. Kh3 {[%clk 0:00:14]}  Re1 {[%clk 0:00:25]} 53. Rc5 {[%clk 0:00:14]}  Ra1 {[%clk 0:00:25]} 54. h5 {[%clk 0:00:14]}  Ra2 {[%clk 0:00:22]} 55. hxg6 {[%clk 0:00:13]}  hxg6 {[%clk 0:00:23]} 56. Kg4 {[%clk 0:00:13]}  Kf6 {[%clk 0:00:23]} 57. Kf3 {[%clk 0:00:13]}  Ke6 {[%clk 0:00:23]} 58. Ke4 {[%clk 0:00:13]}  Ra3 {[%clk 0:00:22]} 59. g4 {[%clk 0:00:10]}  a4 {[%clk 0:00:21]} 60. bxa4 {[%clk 0:00:08]}  Rxa4 {[%clk 0:00:22]} 61. Rc4 {[%clk 0:00:06]}  Kd6 {[%clk 0:00:22]} 62. f5 {[%clk 0:00:05]}  gxf5+ {[%clk 0:00:19]} 63. Kxf5 {[%clk 0:00:06]}  Kd5 {[%clk 0:00:17]} 64. Rc8 {[%clk 0:00:06]}  Ra6 {[%clk 0:00:11]} 65. g5 {[%clk 0:00:06]}  Kd4 {[%clk 0:00:07]} 66. Rc7 {[%clk 0:00:06]}  Ra5+ {[%clk 0:00:03]} 67. Kf6 {[%clk 0:00:06]}  Ke3 {[%clk 0:00:02]} 68. Rxf7 {[%clk 0:00:04]}  Ra6+ {[%clk 0:00:02]} 69. Kf5 {[%clk 0:00:04]}  Kd2 {[%clk 0:00:03]} 70. Rc7 {[%clk 0:00:04]}  Ra5+ {[%clk 0:00:03]} 71. Kg4 {[%clk 0:00:04]}  Ra4 {[%clk 0:00:03]} 72. Kh5 {[%clk 0:00:04]}  Ra3 {[%clk 0:00:03]} 73. g6 {[%clk 0:00:04]}  Rh3+ {[%clk 0:00:03]} 74. Kg5 {[%clk 0:00:05]}  Rg3+ {[%clk 0:00:03]} 75. Kf6 {[%clk 0:00:05]}  Rf3+ {[%clk 0:00:03]} 76. Ke7 {[%clk 0:00:04]}  Re3+ {[%clk 0:00:04]} 77. Kf7 {[%clk 0:00:05]}  Rf3+ {[%clk 0:00:04]} 78. Kg8 {[%clk 0:00:05]}  Rg3 {[%clk 0:00:04]} 79. g7 {[%clk 0:00:06]}  Rg4 {[%clk 0:00:04]} 80. Kf8 {[%clk 0:00:06]}  Rf4+ {[%clk 0:00:04]} 81. Ke8 {[%clk 0:00:06]}  Re4+ {[%clk 0:00:04]} 82. Kd8 {[%clk 0:00:06]}  Rg4 {[%clk 0:00:04]} 83. Ke8 {[%clk 0:00:03]}  Rxg7 {[%clk 0:00:04]} 84. Rxg7 {[%clk 0:00:04]}  Kxc2 {[%clk 0:00:05]} 85. Rc7+ {[%clk 0:00:04]}  Kd3 {[%clk 0:00:03]} 86. Rb7 {[%clk 0:00:03]}  Kc3 {[%clk 0:00:03]} 87. Rc7+ {[%clk 0:00:03]}  Kd3 {[%clk 0:00:03]} 88. Rb7 {[%clk 0:00:03]}  Kc3 {[%clk 0:00:04]} 89. Kd7 {[%clk 0:00:04]}  b3 {[%clk 0:00:05]} 90. Kc6 {[%clk 0:00:04]}  b2 {[%clk 0:00:05]} 91. Kc5 {[%clk 0:00:04]}  Kc2 {[%clk 0:00:06]} 92. Kc4 {[%clk 0:00:05]}  b1=Q {[%clk 0:00:07]} 93. Rxb1 {[%clk 0:00:05]}  Kxb1 {[%clk 0:00:08]} 1/2-1/2


[Site "https://www.chess.com"]